bitfinex-derivatives/quotes_BTCF0:USTF0_20250313
["timestamp","ask_amount","ask_price","bid_price","bid_amount"]
[1741876411785,0.2683268,82085.0,82084.0,0.67586195]
[1741876411986,0.4183268,82085.0,82084.0,0.50735245]
[1741876412296,0.4183268,82085.0,82084.0,0.24812085]
[1741876412885,0.2683268,82085.0,82084.0,0.24812085]
[1741876413887,0.1218483,82084.0,82083.0,7e-08]
[1741876414094,0.1218483,82084.0,82076.0,3e-08]
[1741876414095,0.1218587,82077.0,82076.0,3e-08]
[1741876414583,0.2718587,82077.0,82076.0,3e-08]
[1741876415086,0.1219122,82041.0,82040.0,9.944e-05]
[1741876415290,0.1219122,82041.0,82040.0,0.12201314]
[1741876415291,0.26860494,82041.0,82040.0,0.12201314]
[1741876415882,0.26860494,82041.0,82040.0,9.944e-05]
[1741876416395,0.26860494,82041.0,82040.0,0.12201314]
[1741876416689,0.14669274,82041.0,82040.0,0.12201314]
[1741876416890,0.14669274,82041.0,82040.0,0.12301314]
[1741876417193,0.12200494,82041.0,82040.0,0.12301314]
[1741876418399,0.12200494,82041.0,82040.0,0.00109944]
[1741876418599,0.1219122,82041.0,82040.0,0.001]
[1741876419091,0.13089198,82041.0,82040.0,0.001]
[1741876419485,0.13984725,82041.0,82040.0,0.001]
[1741876419681,0.30594725,82041.0,82040.0,0.001]
[1741876420882,0.13086747,82041.0,82040.0,0.001]
[1741876421087,0.1219122,82043.0,82042.0,0.0609544]
[1741876421292,0.268269,82045.0,82044.0,0.1219032]
[1741876421489,0.12200174,82045.0,82044.0,0.1219032]
[1741876421694,0.26836174,82045.0,82044.0,0.1219032]
[1741876422100,9.274e-05,82045.0,82044.0,0.1219032]
[1741876422298,9.274e-05,82045.0,82044.0,0.2902032]
[1741876422504,9.274e-05,82045.0,82044.0,0.19255583]
[1741876422797,9.274e-05,82045.0,82044.0,0.20240011]
[1741876422990,0.022,82108.0,82056.0,0.1218899]
[1741876423194,0.0609121,82101.0,82065.0,0.27667332]
[1741876423500,0.0609089,82105.0,82090.0,0.27667332]
[1741876423802,0.0609089,82105.0,82066.0,1.1942744]
[1741876423803,0.1218364,82092.0,82091.0,0.1839]
[1741876424300,0.1218424,82088.0,82087.0,0.00018273]
[1741876424502,0.02438,82069.0,82058.0,0.0609422]
[1741876424700,0.1492,82070.0,82066.0,0.0609374]
[1741876425001,0.1218721,82068.0,82067.0,0.3057721]
[1741876425302,0.2712321,82068.0,82067.0,0.3057735]
[1741876425490,0.002,82075.0,82074.0,0.1218631]
[1741876425700,0.00018273,82076.0,82075.0,0.1218617]
[1741876426004,0.00018273,82076.0,82075.0,0.1606]
[1741876426005,0.12204293,82076.0,82075.0,0.1606]
[1741876426187,0.14642293,82076.0,82075.0,0.1606]
[1741876426393,0.00018273,82076.0,82075.0,0.2824617]
[1741876426994,0.00182809,82109.0,82075.0,0.51034876]
[1741876427300,0.02620809,82109.0,82100.0,0.1218169]
[1741876427500,0.00182809,82109.0,82101.0,0.1527]
[1741876427689,0.00182809,82109.0,82108.0,0.1218127]
[1741876427896,0.12363929,82109.0,82108.0,0.1218127]
[1741876428097,0.12363929,82109.0,82106.0,0.1218127]
[1741876428098,0.1218142,82107.0,82106.0,0.1218127]
[1741876428294,0.1218231,82101.0,82100.0,0.00018273]
[1741876428491,0.2961631,82101.0,82100.0,0.00018273]
[1741876428694,0.2961631,82101.0,82100.0,3e-08]
[1741876428896,0.4461631,82101.0,82100.0,3e-08]
[1741876429092,0.2961631,82101.0,82100.0,3e-08]
[1741876430303,0.2718509,82111.0,82100.0,3e-08]
[1741876430499,0.1218231,82101.0,82100.0,0.16370003]
[1741876431405,0.15004,82111.0,82100.0,0.16370003]
[1741876431709,0.6086883,82159.0,82100.0,0.16370003]
[1741876431710,0.0609004,82116.0,82103.0,0.0609096]
[1741876431903,0.00096001,82137.0,82103.0,0.14]
[1741876432120,0.1557,82144.0,82134.0,0.1217712]
[1741876432301,0.02438,82147.0,82146.0,0.1217563]
[1741876432502,0.0852554,82150.0,82144.0,0.0608791]
[1741876432695,0.1217563,82146.0,82145.0,0.2716578]
[1741876432893,0.1217563,82146.0,82145.0,0.1499]
[1741876433597,0.1217682,82138.0,82137.0,0.00018261]
[1741876433798,0.156,82138.0,82067.0,0.34631722]
[1741876433997,0.02437999,82109.0,82080.0,0.27667332]
[1741876434202,0.02437999,82117.0,82080.0,0.42667332]
[1741876434396,0.00182779,82126.0,82125.0,0.1217875]
[1741876434800,0.00182779,82126.0,82103.0,0.15316]
[1741876434801,0.00191737,82126.0,82103.0,0.15316]
[1741876434996,0.0609042,82111.0,82110.0,0.1218097]
[1741876435202,0.1217987,82118.0,82117.0,0.1217979]
[1741876435394,0.02437999,82122.0,82113.0,0.0609021]
[1741876435594,0.1218038,82114.0,82113.0,0.0609021]
[1741876435808,0.0608997,82117.0,82106.0,0.00018272]
[1741876436105,0.1218142,82107.0,82106.0,0.00018272]
[1741876436405,0.1218364,82092.0,82087.0,0.15296]
[1741876436601,0.1218364,82092.0,82091.0,0.2732379]
[1741876436908,0.1218326,82097.0,82096.0,0.0609143]
[1741876437295,0.0609116,82101.0,82092.0,0.0609181]
[1741876437496,0.1218364,82094.0,82093.0,0.1827439]
[1741876437699,0.00018272,82105.0,82104.0,0.1218186]
[1741876437905,0.12199982,82105.0,82102.0,0.0609102]
[1741876438105,0.2436378,82104.0,82103.0,0.1544]
[1741876438499,0.26814756,82104.0,82103.0,0.1544]
[1741876438704,0.26814756,82104.0,82091.0,0.1514]
[1741876438705,0.1218352,82096.0,82095.0,0.1218266]
[1741876439004,0.1218364,82092.0,82091.0,0.1514]
[1741876439405,0.14630878,82092.0,82091.0,0.1514]
[1741876439627,0.14630878,82092.0,82091.0,0.2732379]
[1741876439628,9.239e-05,82092.0,82091.0,0.2732379]
[1741876439999,0.12192879,82092.0,82091.0,0.1514]
[1741876440201,0.02447238,82092.0,82088.0,0.00018272]
[1741876440407,0.14622089,82089.0,82088.0,0.00018272]
[1741876440709,0.0609196,82091.0,82088.0,0.12202512]
[1741876440905,0.1218409,82089.0,82088.0,0.12202212]
[1741876441107,9.239e-05,82092.0,82091.0,0.1218379]
[1741876441412,1e-08,82105.0,82091.0,0.77538102]
[1741876441600,1e-08,82105.0,82104.0,0.1218186]
[1741876442002,1e-08,82105.0,82104.0,0.2948586]
[1741876442206,1e-08,82105.0,82104.0,0.4448586]
[1741876442408,4.025e-05,82105.0,82104.0,0.4564586]
[1741876442714,0.12185735,82105.0,82104.0,0.4364586]
[1741876443012,0.12185735,82105.0,82104.0,0.2834186]
[1741876443205,0.14623734,82105.0,82104.0,0.1616]
[1741876443711,0.02442024,82105.0,82089.0,0.1529]
[1741876443905,0.14622089,82089.0,82087.0,0.00072]
[1741876444105,0.14623279,82081.0,82080.0,1e-08]
[1741876444311,0.14623279,82081.0,82046.0,0.28538102]
[1741876444312,0.02437999,82081.0,82070.0,0.0609335]
[1741876444505,0.14625349,82068.0,82067.0,0.1218735]
[1741876445012,0.060944,82058.0,82054.0,0.0609441]
[1741876445208,8.755e-05,82057.0,82056.0,0.1218899]
[1741876445803,8.755e-05,82057.0,82056.0,0.2826899]
[1741876446314,0.02446754,82057.0,82056.0,0.2826899]
[1741876446919,0.14635594,82057.0,82056.0,0.2826899]
[1741876447220,8.755e-05,82057.0,82056.0,0.2826899]
[1741876447811,1.31075325,82215.0,82075.0,0.1218617]
[1741876447812,0.1218445,82087.0,82075.0,0.1218617]
[1741876448004,0.15308,82108.0,82090.0,0.1218394]
[1741876448210,0.0609145,82097.0,82092.0,0.1218364]
[1741876448405,0.0609145,82097.0,82091.0,0.1536]
[1741876448406,0.0609166,82095.0,82091.0,0.1536]
[1741876448613,0.0609307,82076.0,82073.0,0.28538102]
[1741876448810,0.1218631,82074.0,82073.0,0.1218617]
[1741876449817,0.1218631,82074.0,82066.0,0.0609374]
[1741876449818,0.1218705,82073.0,82072.0,0.1218646]
[1741876450316,0.0609359,82069.0,82065.0,0.00018272]
[1741876450517,0.14625499,82066.0,82065.0,0.00018272]
[1741876450713,0.02337999,82070.0,82069.0,0.1218706]
[1741876450911,7.838e-05,82075.0,82072.0,0.0609324]
[1741876451218,0.23028707,82074.0,82073.0,0.1494]
[1741876451406,0.121875,82066.0,82065.0,0.12205922]
[1741876451921,0.14533337,82066.0,82065.0,0.00018272]
[1741876452105,0.14525499,82066.0,82065.0,0.00018272]
[1741876452514,0.1218929,82055.0,82054.0,0.1218862]
[1741876452711,0.12197128,82055.0,82034.0,0.0609608]
[1741876452912,0.1219047,82046.0,82045.0,0.1494]
[1741876453206,0.060962,82034.0,82017.0,0.15308]
[1741876453412,7.838e-05,82033.0,82018.0,0.1494]
[1741876453719,0.12200448,82033.0,82030.0,0.0609636]
[1741876453917,0.2808255,82032.0,82031.0,0.1494]
[1741876454119,0.2808255,82032.0,82031.0,0.271327]
[1741876454312,0.30420549,82032.0,82031.0,0.271327]
[1741876454514,0.30420549,82032.0,82031.0,0.1494]
[1741876454905,0.46200549,82032.0,82031.0,0.1494]
[1741876455105,0.46200549,82032.0,82031.0,0.1544]
[1741876455320,0.1589,82032.0,82031.0,0.276327]
[1741876455519,0.2808255,82032.0,82031.0,0.276327]
[1741876456217,0.2808255,82032.0,82031.0,0.1544]
[1741876456420,0.18227999,82032.0,82009.0,0.00068]
[1741876456610,0.18227999,82032.0,82005.0,0.0609826]
[1741876456611,0.14532639,82018.0,82010.0,0.1512]
[1741876456921,0.1219523,82014.0,82006.0,0.1219632]
[1741876457125,0.14541067,82014.0,82010.0,0.1219571]
[1741876457310,0.14541067,82014.0,82013.0,0.12210573]
[1741876457509,0.14541067,82014.0,82013.0,0.00015193]
[1741876458019,0.14241067,82014.0,82013.0,0.12210573]
[1741876458211,7.838e-05,82014.0,82013.0,0.12210573]
[1741876458417,8e-08,82014.0,82013.0,1.10323687]
[1741876458623,8e-08,82014.0,82013.0,1.10579687]
[1741876458814,8e-08,82014.0,82013.0,0.98386573]
[1741876459015,8e-08,82014.0,82013.0,0.42386573]
[1741876459422,8e-08,82014.0,82013.0,0.42586573]
[1741876460012,8e-08,82014.0,82013.0,0.44586573]
[1741876460319,0.00018284,82034.0,82033.0,0.1219241]
[1741876460525,0.02056283,82034.0,82021.0,0.1522]
[1741876460714,0.1829011,82030.0,82029.0,0.1219247]
[1741876460915,0.0609659,82030.0,82029.0,0.1219247]
[1741876461224,0.12210604,82034.0,82033.0,0.1219241]
[1741876461425,0.02037999,82030.0,82028.0,0.2776313]
[1741876461624,0.1219255,82032.0,82031.0,0.1219255]
[1741876461816,0.00018284,82034.0,82033.0,0.1219241]
[1741876463223,0.05926034,82043.0,82042.0,0.1219107]
[1741876463425,0.0585043,82046.0,82045.0,0.1219062]
[1741876463926,0.1459,82067.0,82050.0,0.1218988]
[1741876463927,0.1548,82066.0,82050.0,0.1218988]
[1741876464115,0.15558873,82080.0,82050.0,0.1918988]
[1741876464319,0.1218821,82063.0,82062.0,0.121878]
[1741876464519,0.1218884,82057.0,82056.0,0.00018284]
[1741876464714,0.14226839,82057.0,82038.0,0.15264]
[1741876464914,0.1219211,82036.0,82035.0,0.1219134]
[1741876465120,0.02037999,82039.0,82037.0,0.1219166]
[1741876465318,0.1528,82053.0,82050.0,0.001]
[1741876465518,0.1218973,82051.0,82050.0,0.001]
[1741876465726,0.14227729,82051.0,82050.0,0.001]
[1741876466013,0.02037999,82051.0,82044.0,0.0609533]
[1741876466218,0.002,82057.0,82045.0,0.1552]
[1741876466423,0.00018284,82059.0,82058.0,0.1218869]
[1741876467319,0.12206824,82059.0,82058.0,0.1218869]
[1741876467517,0.02056283,82059.0,82057.0,0.1552]
[1741876467723,0.02037999,82058.0,82057.0,0.2770869]
[1741876467926,0.00018284,82059.0,82058.0,0.1218869]
[1741876468430,0.00018284,82059.0,82058.0,0.2770869]
[1741876469018,0.12206824,82059.0,82058.0,0.2770869]
[1741876469221,0.02056283,82059.0,82058.0,0.2770869]
[1741876469729,0.1218869,82058.0,82057.0,0.001]
[1741876469924,0.1798593,82048.0,82047.0,0.1219021]
[1741876470121,0.060952,82048.0,82047.0,0.1219021]
[1741876470322,0.3138,82058.0,82057.0,0.1218884]
[1741876470521,0.4356869,82058.0,82057.0,0.1218884]
[1741876470824,0.1568,82058.0,82057.0,0.1218884]
[1741876471022,0.00018284,82059.0,82058.0,0.1218869]
[1741876471225,0.18461392,82080.0,82079.0,0.1218557]
[1741876471422,0.00182872,82080.0,82079.0,0.1218557]
[1741876471624,0.02220871,82080.0,82079.0,0.1218557]
[1741876471925,0.00182872,82080.0,82079.0,0.1218557]
[1741876472324,0.1495,82104.0,82078.0,0.1444]
[1741876472632,0.156,82097.0,82096.0,0.1218305]
[1741876472821,0.277829,82097.0,82096.0,0.1218305]
[1741876473017,0.02037999,82097.0,82096.0,0.1218305]
[1741876473222,0.02037999,82097.0,82096.0,0.4387305]
[1741876473623,0.00018272,82099.0,82098.0,0.1218275]
[1741876474220,2e-08,82099.0,82098.0,0.1418275]
[1741876474419,2e-08,82099.0,82098.0,0.1218275]
[1741876474637,0.3202934,82125.0,82112.0,0.1218068]
[1741876474933,0.158,82121.0,82112.0,0.1218068]
[1741876475131,0.3202934,82125.0,82112.0,0.2409032]
[1741876475323,0.3202934,82125.0,82124.0,0.121789]
[1741876475528,0.3202934,82125.0,82123.0,0.121789]
[1741876475529,0.1826873,82124.0,82123.0,0.121789]
[1741876475823,0.1826873,82124.0,82123.0,0.271889]
[1741876476026,0.1826873,82124.0,82123.0,0.1501]
[1741876476027,0.35696729,82124.0,82123.0,0.1501]
[1741876476231,0.39067459,82124.0,82123.0,0.2718904]
[1741876476424,0.00182789,82130.0,82123.0,0.2718904]
[1741876476425,0.00182789,82130.0,82123.0,0.1501]
[1741876476625,0.00182789,82130.0,82129.0,0.1217815]
[1741876477035,0.02037999,82130.0,82129.0,0.0608901]
[1741876477341,0.1555,82139.0,82131.0,0.1217786]
[1741876477527,0.1539,82138.0,82131.0,0.1217786]
[1741876478035,0.25318768,82142.0,82131.0,0.2718786]
[1741876478533,0.1464,82141.0,82131.0,0.2718786]
[1741876478837,0.25318768,82142.0,82131.0,0.2718786]
[1741876479634,0.25318768,82142.0,82141.0,0.1217637]
[1741876480731,0.02037999,82142.0,82141.0,0.1217637]
[1741876480926,0.1217652,82140.0,82139.0,0.2799651]
[1741876481122,0.14214519,82140.0,82139.0,0.1582]
[1741876481323,0.1217741,82134.0,82133.0,0.00018261]
[1741876481531,0.1217904,82123.0,82122.0,0.1316372]
[1741876481736,0.1217904,82123.0,82105.0,0.15312]
[1741876481737,0.02037999,82123.0,82105.0,0.15312]
[1741876481934,0.02037999,82111.0,82110.0,0.1218097]
[1741876482332,0.02037999,82111.0,82093.0,0.0609172]
[1741876482532,0.1218275,82098.0,82097.0,0.2663282]
[1741876482738,0.1218275,82098.0,82097.0,0.1218282]
[1741876483036,0.1218305,82096.0,82095.0,0.12201251]
[1741876483228,0.02037999,82096.0,82095.0,0.12201251]
[1741876483824,0.14221049,82096.0,82095.0,0.00018261]
[1741876484030,0.32817999,82096.0,82095.0,0.12201461]
[1741876484232,0.45001049,82096.0,82095.0,0.00018261]
[1741876484832,0.1218661,82072.0,82069.0,0.0609351]
[1741876485031,0.02037999,82072.0,82071.0,0.12195332]
[1741876485226,0.14224609,82072.0,82071.0,8.572e-05]
[1741876485634,0.14224609,82072.0,82071.0,0.12195332]
[1741876485829,0.14224609,82072.0,82071.0,8.572e-05]
[1741876486027,0.14424609,82072.0,82071.0,0.12195332]
[1741876486433,0.14424609,82072.0,82071.0,8.572e-05]
[1741876486628,0.121878,82064.0,82063.0,0.00018273]
[1741876486836,0.02037999,82064.0,82049.0,0.1461]
[1741876487139,0.15276,82069.0,82049.0,0.1461]
[1741876487140,0.02037999,82057.0,82055.0,0.1218899]
[1741876487335,0.2999,82056.0,82055.0,0.1218899]
[1741876487639,0.4217899,82056.0,82055.0,0.1218899]
[1741876487839,0.2999,82056.0,82055.0,0.13207943]
[1741876488031,0.15276,82069.0,82055.0,0.01018953]
[1741876488233,0.15276,82069.0,82058.0,0.1218869]
[1741876488234,0.02037999,82059.0,82058.0,0.1218869]
[1741876488433,0.02037999,82059.0,82058.0,0.2718869]
[1741876488738,0.02037999,82059.0,82055.0,0.01034678]
[1741876488739,0.1219018,82049.0,82048.0,0.182846]
[1741876488944,0.02037999,82053.0,82050.0,0.1828446]
[1741876489137,0.32457999,82053.0,82049.0,0.00993185]
[1741876489339,0.1219018,82048.0,82040.0,0.1219129]
[1741876489542,0.14228179,82048.0,82046.0,0.1219033]
[1741876490242,0.02037999,82048.0,82047.0,0.12202545]
[1741876490440,0.01937999,82048.0,82047.0,0.12202545]
[1741876490942,0.14128179,82048.0,82047.0,0.12202545]
[1741876491142,0.01937999,82048.0,82047.0,0.12202545]
[1741876491338,0.01937999,82048.0,82047.0,0.27162545]
[1741876491538,0.1529,82053.0,82052.0,0.1218958]
[1741876492339,0.12207183,82057.0,82056.0,0.1218899]
[1741876492643,0.00018273,82057.0,82056.0,0.1218899]
[1741876493850,8.572e-05,82059.0,82058.0,0.1218869]
[1741876494153,0.27187112,82059.0,82058.0,0.1218869]
[1741876494447,0.1218884,82057.0,82056.0,0.4163871]
[1741876494641,0.14126839,82057.0,82056.0,0.1228899]
[1741876494848,0.1487,82058.0,82057.0,0.1218884]
[1741876495143,0.14126839,82057.0,82056.0,0.001]
[1741876495347,0.29116839,82057.0,82056.0,0.1228899]
[1741876495842,0.1499,82057.0,82056.0,0.1228899]
[1741876496347,0.00208572,82059.0,82058.0,0.1218869]
[1741876496743,0.14135111,82059.0,82058.0,0.4169869]
[1741876496943,0.14135111,82059.0,82058.0,0.2685869]
[1741876497249,0.1218914,82055.0,82054.0,0.1218928]
[1741876497448,0.2815,82058.0,82052.0,0.1484]
[1741876497667,0.4033869,82058.0,82057.0,0.1218884]
[1741876497839,0.2815,82058.0,82057.0,0.1218884]
[1741876498040,8.572e-05,82059.0,82058.0,0.1218869]
[1741876498354,8.572e-05,82059.0,82058.0,0.4169869]
[1741876499141,0.00208572,82059.0,82058.0,0.4169869]
[1741876499638,0.00018273,82065.0,82058.0,0.3151]
[1741876499841,0.17997161,82102.0,82083.0,0.1218498]
[1741876500037,0.00164606,82084.0,82083.0,0.1218498]
[1741876500238,0.1469,82101.0,82100.0,0.1218246]
[1741876500441,0.2687231,82101.0,82100.0,0.1218246]
[1741876500644,0.2687231,82101.0,82083.0,0.18275186]
[1741876500645,0.1218335,82094.0,82093.0,0.1541]
[1741876500845,0.0609159,82096.0,82093.0,0.132072]
[1741876501148,0.01937999,82094.0,82086.0,0.121842]
[1741876501344,0.01937999,82087.0,82085.0,0.12202953]
[1741876501538,0.01937999,82096.0,82089.0,0.0609201]
[1741876501739,0.01937999,82097.0,82096.0,0.1218305]
[1741876501950,0.18015434,82102.0,82096.0,0.1218305]
[1741876501951,0.18015434,82102.0,82096.0,0.52]
[1741876502247,0.18015434,82102.0,82101.0,0.1218231]
[1741876503744,0.00018273,82102.0,82101.0,0.1218231]
[1741876503948,0.12200433,82102.0,82101.0,0.1218231]
[1741876504149,0.00018273,82102.0,82101.0,0.1218231]
[1741876504550,0.01956272,82102.0,82101.0,0.1228231]
[1741876505054,0.00018273,82102.0,82101.0,0.1228231]
[1741876505645,0.01956272,82102.0,82101.0,0.1228231]
[1741876505847,0.00018273,82102.0,82101.0,0.1228231]
[1741876506352,0.00118273,82102.0,82101.0,0.1218231]
[1741876506551,0.00124001,82133.0,82101.0,0.51180045]
[1741876506755,0.17997161,82140.0,82135.0,0.1217726]
[1741876506957,0.1481,82139.0,82135.0,0.1217726]
[1741876507159,0.1429788,82136.0,82135.0,0.1217726]
[1741876507648,0.0212076,82136.0,82135.0,0.1217726]
[1741876508046,0.1429788,82136.0,82135.0,0.1217726]
[1741876508350,0.17997161,82140.0,82135.0,0.31010958]
[1741876508559,0.17997161,82140.0,82139.0,0.1217667]
[1741876508748,0.00018273,82144.0,82143.0,0.1217608]
[1741876508944,0.1481,82149.0,82143.0,0.1217608]
[1741876508945,0.1506,82164.0,82143.0,0.1217608]
[1741876509148,0.1506,82164.0,82154.0,0.1217389]
[1741876509149,0.1826202,82155.0,82154.0,0.1217389]
[1741876509558,0.08025209,82155.0,82154.0,0.1217389]
[1741876509857,0.2107658,82163.0,82151.0,0.0608743]
[1741876509858,0.1499,82163.0,82162.0,0.1217326]
[1741876510154,0.15008262,82163.0,82162.0,0.1217326]
[1741876510455,0.16946261,82163.0,82162.0,0.1217326]
[1741876510860,0.16946261,82163.0,82160.0,0.2046672]
[1741876510861,0.1217341,82161.0,82160.0,0.2655326]
[1741876511149,0.1826205,82154.0,82153.0,0.1217412]
[1741876511552,0.14112579,82154.0,82152.0,0.13170473]
[1741876511753,0.14112599,82153.0,82152.0,0.1217474]
[1741876511956,0.01937999,82156.0,82155.0,0.121743]
[1741876512154,0.00118262,82163.0,82152.0,0.0608736]
[1741876512155,0.00118262,82163.0,82162.0,0.1217326]
[1741876512759,2e-08,82163.0,82162.0,0.1217326]
[1741876512967,2e-08,82163.0,82162.0,0.26345299]
[1741876513666,0.0608501,82184.0,82162.0,0.26345299]
[1741876513874,0.01937999,82174.0,82173.0,0.1217163]
[1741876514367,0.12188843,82181.0,82180.0,0.121706]
[1741876514759,0.01956212,82181.0,82180.0,0.121706]
[1741876514966,0.28046662,82181.0,82180.0,0.3009]
[1741876515165,0.28046662,82181.0,82118.0,0.28964653]
[1741876515166,0.1217282,82166.0,82164.0,0.06104642]
[1741876515366,0.01937999,82167.0,82166.0,0.1217267]
[1741876515556,0.01937999,82167.0,82166.0,0.4226267]
[1741876515760,0.1392,82174.0,82173.0,0.1217163]
[1741876516160,0.00018213,82181.0,82180.0,0.121706]
[1741876516566,0.01956212,82181.0,82180.0,0.121706]
[1741876516958,0.01956212,82181.0,82180.0,0.272706]
[1741876518465,0.00018213,82181.0,82180.0,0.28303771]
[1741876519061,0.01956212,82181.0,82160.0,0.27667332]
[1741876519266,0.01937999,82170.0,82167.0,0.145]
[1741876519467,0.1217223,82169.0,82168.0,0.1422]
[1741876519669,0.2704223,82169.0,82168.0,0.2639237]
[1741876519868,0.01937999,82169.0,82168.0,0.2639237]
[1741876520067,0.1,82200.0,82180.0,0.121706]
[1741876520264,0.1216977,82186.0,82180.0,0.121706]
[1741876520471,0.01956212,82181.0,82180.0,0.121706]
[1741876520775,0.01956212,82181.0,82180.0,0.408906]
[1741876521277,0.00018213,82181.0,82180.0,0.408906]
[1741876521469,0.1487,82188.0,82180.0,0.408906]
[1741876521470,0.1417,82189.0,82188.0,0.1216941]
[1741876521666,0.01937999,82186.0,82180.0,0.2872]
[1741876521866,0.01937999,82185.0,82184.0,0.1825467]
[1741876522061,0.01937999,82185.0,82182.0,0.1217026]
[1741876522062,0.121703,82183.0,82182.0,0.1217026]
[1741876522269,0.1217109,82179.0,82178.0,0.0608536]
[1741876522474,0.20194479,82179.0,82178.0,0.0608536]
[1741876522675,0.08023389,82179.0,82178.0,0.0608536]
[1741876523182,0.1217193,82171.0,82170.0,0.1219003]
[1741876523480,0.14109929,82171.0,82170.0,0.18276]
[1741876523673,0.14109929,82171.0,82170.0,0.0001825]
[1741876523978,0.01937999,82171.0,82158.0,0.01024479]
[1741876524172,0.0608707,82156.0,82152.0,0.1382]
[1741876524369,0.182627,82151.0,82148.0,0.0608752]
[1741876524571,0.0608687,82159.0,82148.0,0.0608752]
[1741876524774,0.1826248,82152.0,82151.0,0.121744]
[1741876525074,0.0608744,82152.0,82148.0,0.0608752]
[1741876525269,0.01937999,82149.0,82148.0,0.0608752]
[1741876525470,0.01937999,82149.0,82143.0,0.0610623]
[1741876525471,0.1217593,82144.0,82143.0,0.0001825]
[1741876525677,0.14113929,82144.0,82143.0,0.0001825]
[1741876526970,0.14113929,82144.0,82143.0,0.1219433]
[1741876527171,0.29097929,82144.0,82143.0,0.1219433]
[1741876527469,0.29097929,82144.0,82143.0,0.0001825]
[1741876528072,0.1217682,82138.0,82137.0,8.539e-05]
[1741876528279,0.14114819,82138.0,82137.0,8.539e-05]
[1741876528475,0.14114819,82138.0,82137.0,0.12185509]
[1741876529277,0.01937999,82138.0,82137.0,0.12185509]
[1741876529577,0.14964,82144.0,82143.0,0.1217608]
[1741876529971,0.01937999,82144.0,82143.0,0.1217608]
[1741876530167,0.1217682,82138.0,82137.0,8.539e-05]
[1741876530479,0.14114819,82138.0,82137.0,0.12185509]
[1741876530670,0.1826515,82140.0,82139.0,0.1826407]
[1741876530870,0.14114819,82138.0,82137.0,8.539e-05]
[1741876531483,0.29094819,82138.0,82137.0,8.539e-05]
[1741876531680,0.1217801,82130.0,82117.0,0.0608993]
[1741876531873,0.01937999,82130.0,82098.0,0.1498]
[1741876532071,0.0609085,82106.0,82103.0,0.2013076]
[1741876532380,0.1218364,82092.0,82091.0,0.1231157]
[1741876532675,0.1218364,82092.0,82091.0,0.04]
[1741876532876,0.1827388,82100.0,82099.0,0.1218246]
[1741876533067,0.06109552,82100.0,82099.0,0.1218246]
[1741876533268,0.01956261,82100.0,82099.0,0.1218246]
[1741876533474,0.00018262,82100.0,82099.0,0.1218246]
[1741876533673,0.00018262,82100.0,82099.0,0.2728246]
[1741876534178,0.15016,82122.0,82100.0,0.0609117]
[1741876534377,0.01937999,82113.0,82112.0,0.1218068]
[1741876534572,0.14118529,82113.0,82112.0,0.1218068]
[1741876535170,0.1218318,82098.0,82097.0,0.0609136]
[1741876535381,0.1198318,82098.0,82097.0,0.0609136]
[1741876535579,0.14988,82110.0,82093.0,0.151]
[1741876535879,0.1218288,82099.0,82098.0,0.1218244]
[1741876536174,0.01937999,82103.0,82102.0,0.1218216]
[1741876536375,0.00018273,82110.0,82109.0,0.1218112]
[1741876536681,0.12199243,82110.0,82109.0,0.1218112]
[1741876536977,0.00018273,82110.0,82095.0,0.0609153]
[1741876537177,0.00018273,82110.0,82109.0,0.1218112]
[1741876537371,0.12199243,82110.0,82109.0,0.1218112]
[1741876537570,0.14137242,82110.0,82109.0,0.1218112]
[1741876537977,0.00118273,82110.0,82109.0,0.1218112]
[1741876538173,0.02056272,82110.0,82090.0,0.0609193]
[1741876538380,0.14120349,82101.0,82100.0,0.1218246]
[1741876538680,0.14120459,82100.0,82099.0,0.1443]
[1741876538978,0.1218394,82090.0,82069.0,0.00064]
[1741876539177,0.1218557,82079.0,82060.0,0.36146434]
[1741876539381,0.16985999,82079.0,82063.0,0.01003391]
[1741876539581,0.01937999,82073.0,82071.0,0.0609338]
[1741876539777,0.156,82094.0,82071.0,0.2982]
[1741876539974,0.27998466,82110.0,82080.0,0.1218528]
[1741876539975,0.1218529,82081.0,82080.0,0.1218528]
[1741876540276,0.1218676,82071.0,82060.0,0.42304584]
[1741876540583,0.13834027,82071.0,82070.0,0.3387925]
[1741876540780,9.268e-05,82071.0,82070.0,0.3387925]
[1741876541077,0.12196028,82071.0,82070.0,0.2169234]
[1741876541283,9.268e-05,82071.0,82070.0,0.3387925]
[1741876541584,0.00109268,82071.0,82070.0,0.4200691]
[1741876541878,8e-08,82071.0,82070.0,0.4200691]
[1741876542084,0.00018273,82089.0,82088.0,0.1218424]
[1741876542378,0.13822179,82093.0,82092.0,0.1218335]
[1741876542567,0.01637999,82093.0,82092.0,0.1218335]
[1741876542769,0.14299045,82096.0,82095.0,0.121832]
[1741876542972,0.0609001,82117.0,82112.0,0.0609027]
[1741876543175,0.1827248,82107.0,82106.0,0.0609072]
[1741876543368,0.0609077,82107.0,82106.0,0.0609072]
[1741876543574,0.1514,82112.0,82106.0,0.06108993]
[1741876543785,0.0609009,82116.0,82115.0,0.1217993]
[1741876544082,0.13818229,82115.0,82114.0,0.2821]
[1741876544283,0.04708976,82118.0,82115.0,0.1826998]
[1741876544468,0.04708976,82118.0,82117.0,0.1217993]
[1741876544668,0.16888766,82118.0,82117.0,0.1217993]
[1741876544883,0.18526765,82118.0,82117.0,0.4038993]
[1741876545077,0.18526765,82118.0,82117.0,0.2821]
[1741876545284,0.1218082,82111.0,82110.0,0.2754076]
[1741876545480,0.1218082,82111.0,82110.0,0.4133076]
[1741876545681,0.1218082,82111.0,82110.0,0.2915]
[1741876545979,0.13818819,82111.0,82110.0,0.1379]
[1741876546280,0.13818819,82111.0,82110.0,0.2597097]
[1741876546485,0.1218013,82116.0,82115.0,0.1218023]
[1741876546783,0.1218142,82108.0,82107.0,0.1218081]
[1741876546984,0.01637999,82116.0,82106.0,0.00018273]
[1741876547177,0.1827182,82110.0,82109.0,0.1218042]
[1741876547386,0.13819269,82108.0,82107.0,0.1536]
[1741876548081,0.43799269,82108.0,82107.0,0.1536]
[1741876548588,0.4216127,82108.0,82107.0,0.2754142]
[1741876548776,0.4246127,82108.0,82107.0,0.2754142]
[1741876549285,0.2804127,82108.0,82107.0,0.2754142]
[1741876550184,0.1248127,82108.0,82107.0,0.2754142]
[1741876550385,0.003,82108.0,82107.0,0.2754142]
[1741876550570,0.1248127,82108.0,82107.0,0.2754142]
[1741876550979,0.003,82108.0,82107.0,0.2754142]
[1741876551280,0.004,82108.0,82107.0,0.2754142]
[1741876551586,0.14219269,82108.0,82107.0,0.1536]
[1741876551775,0.14119269,82108.0,82107.0,0.1536]
[1741876551980,0.14119269,82108.0,82107.0,0.2754142]
[1741876552180,0.003,82108.0,82107.0,0.2754142]
[1741876552385,0.0609055,82111.0,82109.0,0.1218062]
[1741876552685,0.0609055,82111.0,82106.0,0.00018273]